[Event "EYCC O18-ch 2024"]
[Site "Prague"]
[Date "2024.08.24"]
[Round "3.5"]
[White "Koutlas, Nikolaos"]
[Black "Razafindratsima, Timothe"]
[Result "1-0"]
[ECO "C42"]
[WhiteElo "2322"]
[BlackElo "2457"]
[Annotator "TA"]
[PlyCount "156"]
[EventDate "2024.08.19"]
[EventType "swiss"]
[EventCountry "CZE"]
[SourceTitle "playchess.com"]
[Source "ChessBase"]
[SourceQuality "1"]
[TimeControl "5400+30"]

{[%evp 17,156,0,0,0,4,9,0,-6,19,20,31,27,33,0,103,111,120,121,180,150,165,164,159,151,141,142,131,109,139,140,169,157,170,138,153,158,168,112,122,120,170,158,169,168,178,139,163,139,139,125,166,129,122,121,128,128,177,133,241,242,255,255,253,210,262,262,262,231,558,515,704,685,764,396,382,244,799,779,1068,897,1024,974,1389,1299,1349,1254,1158,1053,908,756,1759,1491,1327,1335,2292,1248,7360,7360,7360,29957,29965,29966,29962,29957,29970,8,8,8,29973,29974,29974,29975,29977,29977,29977,29976,29975,29976,29975,29972,29970,29971,29975,29976,29973,29974,29977,29978,29981,29982,29981,29982,29982,29983,29984,29985,29985,29986,29986,29987,29986]} 1. e4 {[%emt 0:00:04]} e5 {[%emt 0:00:12]} 2. Nf3 {[%emt 0:00:18]} Nf6 {[%emt 0:00:14]} 3. Nxe5 {[%emt 0:05:24]} d6 {[%emt 0:00:08]} 4. Nf3 {[%emt 0:00:04]} Nxe4 {[%emt 0:00:12]} 5. d3 {[%emt 0:01:14]} Nf6 {[%emt 0:00:15]} 6. d4 {[%emt 0:00:11]} d5 {[%emt 0:01:11]} 7. Bd3 {[%emt 0:00:40]} Bd6 {[%emt 0:00:25]} 8. O-O {[%emt 0:00:22]} O-O {[%emt 0:00:07]} 9. h3 {[%emt 0:00:09]} Nc6 {[%emt 0:09:31]} 10. c3 {[%emt 0:03:59]} h6 {[%emt 0:00:28]} 11. Re1 {[%emt 0:03:08]} Re8 {[%emt 0:01:55]} 12. Nbd2 {[%emt 0:05:15][%cal Bb1d2,Bd2f1,Bf1e3,Be3d5][%mdl 32] The position is equal.} Bd7 {[%emt 0:06:34]} 13. Nf1 {[%emt 0:11:11]} Ne4 {[%emt 0:31:07]} 14. Ne3 {[%emt 0:03:46]} Be6 {[%emt 0:02:55]} 15. a3 {[%emt 0:11:52]} Ne7 {[%emt 0:10:58] [#]} (15... f5 $11 {remains equal.}) 16. Nxd5 $1 $16 {[%emt 0:04:36][%mdl 512]} Nxd5 {[%emt 0:02:17]} (16... Bxd5 17. Bxe4) 17. Bxe4 {[%emt 0:02:55]} f5 {[%emt 0:04:13]} (17... Qc8 $16 18. c4 Nf4) 18. Bd3 {[%emt 0:03:34][%cal Oe1e6] And now Rxe6! would win.} c6 {[%emt 0:00:10]} 19. Bd2 {[%emt 0:03:01]} Qf6 {[%emt 0:02:27]} 20. Ne5 {[%emt 0:03:53]} Rad8 {[%emt 0:00:56]} 21. Qf3 {[%emt 0:05:04]} Nb6 {[%emt 0:02:05]} 22. b4 {[%emt 0:03:35]} Bc7 {[%emt 0:03:09]} 23. Qh5 {[%emt 0:03:52] White is more active.} Nd5 {[%emt 0:10:02]} 24. Rad1 {[%emt 0:02:51]} Nb6 {[%emt 0:00:48]} 25. Re3 {[%emt 0:02:19]} f4 {[%emt 0:02:13]} 26. Re4 {[%emt 0:01:25]} Bxe5 {[%emt 0:04:57]} 27. Qxe5 {[%emt 0:01:58]} (27. dxe5 Qf5 28. Qf3 Bd5 $16) ({Better is} 27. Rxe5 $18 Bf7 28. Qg4) 27... Qxe5 {[%emt 0:00:57]} 28. Rxe5 {[%emt 0:00:05][%cal Od1e1]} f3 {[%emt 0:01:02]} 29. Rde1 $18 {[%emt 0:01:22]} Bf7 {[%emt 0:00:11]} 30. Rxe8+ {[%emt 0:00:07]} Rxe8 {[%emt 0:00:16]} 31. Rxe8+ {[%emt 0:00:10]} ({Stronger than} 31. gxf3 Rxe1+ 32. Bxe1 Be6 $14) 31... Bxe8 {[%emt 0:00:01]} 32. gxf3 {[%emt 0:01:10][%mdl 4096] Endgame. KBB-KBN} Bf7 {[%emt 0:00:01]} 33. Kg2 {[%emt 0:02:28]} a6 {[%emt 0:01:05]} 34. Kf1 {[%emt 0:01:30]} Be6 {[%emt 0:00:20]} 35. h4 {[%emt 0:00:05]} Kf7 {[%emt 0:00:01]} 36. Ke2 {[%emt 0:00:17]} Bd5 {[%emt 0:01:56]} (36... Bc4 $16 37. Be3 Kf6) 37. Bf4 {[%emt 0:02:59]} Nc4 {[%emt 0:02:22] [#]} (37... Bb3 $16 38. Kd2 Ke7) 38. a4 $1 {[%emt 0:00:24][%cal Ba3a4,Ba4a5][%mdl 32]} Nb2 {[%emt 0:00:03][%cal Ob2d3]} 39. Bc2 {[%emt 0:00:05]} Nc4 {[%emt 0:00:33]} 40. Bc7 {[%emt 0:03:26]} b5 {[%emt 0:00:07]} 41. a5 {[%emt 0:00:22]} Kf6 {[%emt 0:00:13]} 42. f4 {[%emt 0:00:43]} Na3 $2 {[%emt 0:00:28]} (42... g6 {is more resistant.} 43. f3 Kg7 44. Be5+ Kf7) 43. Be5+ {[%emt 0:00:05]} Kf7 {[%emt 0:00:02]} 44. Bf5 {[%emt 0:01:01]} Be6 {[%emt 0:00:38]} 45. Be4 {[%emt 0:00:49]} Bd5 {[%emt 0:00:12]} 46. f3 {[%emt 0:00:05]} h5 $2 {[%emt 0:02:07]} (46... g6 47. f5 gxf5) 47. Bf5 {[%emt 0:01:14]} Be6 {[%emt 0:00:05]} 48. Bxe6+ {[%emt 0:00:32]} Kxe6 {[%emt 0:00:01]} 49. Bxg7 {[%emt 0:00:05] KB-KN} Kf5 {[%emt 0:01:28]} 50. Be5 {[%emt 0:00:28]} Nc4 {[%emt 0:00:06]} 51. Bc7 {[%emt 0:00:26]} Nb2 {[%emt 0:00:45]} 52. Bb8 {[%emt 0:01:11]} Ke6 {[%emt 0:00:21] [#]} 53. d5+ $1 {[%emt 0:01:47]} cxd5 {[%emt 0:00:37]} (53... Kxd5 54. f5) 54. Ke3 {[%emt 0:00:04]} Nc4+ {[%emt 0:00:17]} 55. Kd4 {[%emt 0:00:18]} Nd2 {[%emt 0:00:04] [#]} 56. f5+ $1 {[%emt 0:00:50]} Kxf5 {[%emt 0:00:22]} (56... Ke7 57. Kxd5) 57. Kxd5 {[%emt 0:00:06]} Nxf3 {[%emt 0:00:08]} 58. c4 {[%emt 0:00:35]} bxc4 {[%emt 0:00:09]} 59. Kxc4 {[%emt 0:00:04]} Ke6 {[%emt 0:02:01]} 60. b5 {[%emt 0:00:51][%cal Bb4b5,Bb5b6][%mdl 32]} Kd7 {[%emt 0:00:39]} 61. Kc5 $2 {[%emt 0:01:44]} (61. Bg3 {mates} Kc8 62. bxa6 Nxh4 63. Bxh4 Kb8 64. Bf2 h4 65. Bxh4 Ka7 66. Kb5) 61... Kc8 $1 $11 {[%emt 0:00:45]} 62. Bg3 {[%emt 0:00:30]} (62. Bd6 $5 Kb7 $8 63. Be7 axb5 64. Kxb5 $11) 62... Kb7 $2 {[%emt 0:00:18][%mdl 8192] [#] Black cannot hold the game after this.} (62... Nxh4 $11 63. bxa6 (63. Bxh4 axb5 64. Kxb5 Kb7 $18) 63... Nf5) 63. b6 $1 {[%emt 0:00:05] White mates.} Nd2 {[%emt 0:00:15]} 64. Kd5 {[%emt 0:00:22]} Nf3 {[%emt 0:00:33]} 65. Ke4 {[%emt 0:00:05]} Nd2+ {[%emt 0:01:13]} 66. Kf4 {[%emt 0:00:33]} Nb3 {[%emt 0:00:08]} 67. Be1 {[%emt 0:01:29]} Nd4 {[%emt 0:00:01]} 68. Bd2 {[%emt 0:00:16]} Kc6 {[%emt 0:00:07]} 69. Be3 {[%emt 0:00:34]} Nb3 {[%emt 0:00:08]} 70. Kg5 {[%emt 0:00:18]} Nxa5 {[%emt 0:00:03]} 71. Kxh5 {[%emt 0:00:04]} Nc4 {[%emt 0:00:24]} 72. Bd4 {[%emt 0:00:18]} Nd2 {[%emt 0:00:46]} 73. Kg4 {[%emt 0:00:06]} Nb3 {[%emt 0:00:49]} 74. Bb2 {[%emt 0:00:10]} Nc5 {[%emt 0:01:40]} 75. h5 {[%emt 0:00:05][%cal Bh4h5,Bh5h6][%mdl 32]} Ne6 {[%emt 0:01:09]} 76. h6 {[%emt 0:00:03]} Nf8 {[%emt 0:00:07]} 77. Kf5 {[%emt 0:00:04]} Kxb6 {[%emt 0:00:19]} 78. Ba3 {[%emt 0:00:04]} Nh7 {[%emt 0:00:05] Weighted Error Value: White=0.24 (precise) /Black=0.32.  Loses game:     	---       	Black=1      Mistake:       	White=1     	Black=7      Inaccurate:     	White=1     	Black=3      OK:         	White=11    	Black=10     Best:        	White=2     	---        Strong:       	White=2     	---        Brilliant:      	White=1     	---} 1-0

[Event "EYCC O18-ch 2024"]
[Site "Prague"]
[Date "2024.08.24"]
[Round "3.6"]
[White "Babula, Vlastimil"]
[Black "Taranowicz, Michal"]
[Result "0-1"]
[ECO "C02"]
[WhiteElo "2503"]
[BlackElo "2164"]
[Annotator "TA"]
[PlyCount "78"]
[EventDate "2024.08.19"]
[EventType "swiss"]
[EventCountry "CZE"]
[SourceTitle "playchess.com"]
[Source "ChessBase"]
[SourceQuality "1"]
[TimeControl "5400+30"]

{[%evp 11,78,-23,0,-28,-8,-23,-31,-37,-41,-43,-39,-26,-16,-83,0,-18,40,35,80,74,100,47,97,32,90,17,0,0,48,45,63,72,70,46,34,41,32,-123,51,62,57,61,61,44,58,-302,-314,-447,-439,-693,-687,-1236,-1214,-2395,-2308,-1943,-1825,-4946,-875,-799,-863,-834,-814,-797,-772,-29988,-29989,-29989,-29988]} 1. e4 {[%emt 0:00:03]} e6 {[%emt 0:00:04]} 2. d4 {[%emt 0:01:26]} d5 {[%emt 0:00:06]} 3. e5 {[%emt 0:00:02]} c5 {[%emt 0:00:05]} 4. c3 {[%emt 0:00:03]} Nc6 {[%emt 0:00:04]} 5. Nf3 {[%emt 0:00:05]} Qb6 {[%emt 0:00:05]} 6. Bd3 {[%emt 0:00:54]} cxd4 {[%emt 0:00:06]} 7. O-O {[%emt 0:01:03]} Bd7 {[%emt 0:00:03]} 8. Re1 {[%emt 0:00:09]} Nge7 {[%emt 0:02:21]} 9. h4 {[%emt 0:00:07] Black is slightly better.} h6 {[%emt 0:00:03]} 10. h5 {[%emt 0:04:41]} Rc8 {[%emt 0:00:17]} 11. a3 {[%emt 0:07:28]} a6 {[%emt 0:03:25]} 12. g3 {[%emt 0:08:31]} (12. b4 $11) 12... g5 {[%emt 0:47:31]} (12... dxc3 $17 13. Nxc3 Nd4) 13. hxg6 $11 {[%emt 0:10:06]} fxg6 {[%emt 0:00:15]} (13... Nxg6 $11 14. Bxg6 fxg6) 14. cxd4 $14 {[%emt 0:00:37]} Nf5 {[%emt 0:03:30]} 15. Nc3 {[%emt 0:02:29][%cal Oc3d5] Hoping for Nxd5!} Kd8 {[%emt 0:03:44]} 16. Ne2 {[%emt 0:17:44]} (16. Na4 $16 Qa7 17. Bxf5 gxf5 18. Kg2) 16... Be7 {[%emt 0:06:17]} (16... g5 $14) 17. Kg2 {[%emt 0:03:52]} ({White should try} 17. Nf4 $16 Rg8 18. Bxf5 gxf5 19. b4) 17... Kc7 {[%emt 0:16:21]} ({Black should play} 17... g5 $14) 18. Rh1 {[%emt 0:06:42]} (18. Nf4 $16 Rcg8 19. Bxf5 gxf5 20. Rh1) 18... g5 $11 {[%emt 0:02:06]} 19. g4 {[%emt 0:08:01]} Ng7 {[%emt 0:00:57]} (19... Nfxd4 $2 20. Nexd4 Bc5 (20... Nxd4 $2 21. Be3 $18) 21. Be3 $18 (21. Nxc6 Bxc6 22. b4 Be7 $18)) (19... Nh4+ $1 $11 {might be stronger.} 20. Nxh4 gxh4) 20. b4 {[%emt 0:02:19]} h5 {[%emt 0:02:12]} 21. Nxg5 {[%emt 0:05:53]} (21. Bxg5 $2 hxg4 22. Be3 gxf3+ $19) 21... hxg4 {[%emt 0:00:12]} 22. Nf7 {[%emt 0:00:57] Dodges Kb8} Rxh1 {[%emt 0:01:57]} 23. Qxh1 {[%emt 0:00:32] And now Qh7 would win.} Rf8 $1 {[%emt 0:00:10]} (23... Nxd4 24. Be3 Kb8 25. Bxd4 $18 (25. Nxd4 Ne8 $18)) 24. Nh8 {[%emt 0:06:29] [#]} (24. Nh6 $14 {keeps the upper hand.}) 24... Nxe5 $2 {[%emt 0:02:07] Black is more active.} 25. Bf4 $14 {[%emt 0:00:53]} Rxf4 {[%emt 0:00:05]} 26. Qc1+ {[%emt 0:00:37]} Kd8 {[%emt 0:01:23]} 27. Qxf4 {[%emt 0:02:48]} Nxd3 {[%emt 0:00:06]} 28. Qxg4 {[%emt 0:02:18][%mdl 8192] [#] This costs White the game.} (28. Qb8+ $14 {is the one way to stay ahead.} Bc8 29. Nf7+ Kd7 (29... Ke8 30. Ne5 $16) 30. Rd1) 28... Nf5 $1 $19 {[%emt 0:02:16]} 29. Nf7+ {[%emt 0:01:19]} (29. Rd1 {was called for.} Bb5 30. a4) 29... Kc7 {[%emt 0:01:34][%cal Oe6e5] ...e5! is the strong threat.} 30. Rd1 {[%emt 0:00:05] [#]} (30. Ne5 $142 Nxe5 31. dxe5) 30... e5 $1 {[%emt 0:02:18]} 31. Kg1 {[%emt 0:02:15]} (31. Qh5 Nh4+) 31... Nxd4 {[%emt 0:01:09]} 32. Qh5 {[%emt 0:00:08]} Nxe2+ {[%emt 0:00:29]} 33. Qxe2 {[%emt 0:00:02]} Qg6+ {[%emt 0:00:17]} 34. Kh1 {[%emt 0:00:09]} Qxf7 {[%emt 0:01:36]} (34... Nxf2+ $142 35. Qxf2 Qh5+ 36. Kg2 Bh3+ (36... Qxd1 $2 37. Nxe5 Qb1 38. Nxd7 $19) 37. Kg1 Qxd1+ 38. Kh2 Be6 (38... Bd7 $2 39. Kg2 $19)) 35. Rxd3 {[%emt 0:00:16]} Bd6 {[%emt 0:00:37] Threatens to win with ...e4.} 36. Rg3 {[%emt 0:01:08]} Qh7+ {[%emt 0:01:19]} 37. Kg1 {[%emt 0:00:26]} e4 {[%emt 0:00:29]} 38. Rg5 {[%emt 0:00:01]} Qh2+ {[%emt 0:00:13]} 39. Kf1 {[%emt 0:00:02]} Bb5 {[%emt 0:00:07] Weighted Error Value: White=1.21/Black=0.36.  Loses game:     	White=1     	---        Mistake:       	White=7     	Black=6      Inaccurate:     	White=1     	Black=1      OK:         	White=7     	Black=8      Best:        	White=3     	Black=2      Strong:       	---       	Black=2      Brilliant:      	---       	Black=1} 0-1

[Event "EYCC O18-ch 2024"]
[Site "Prague"]
[Date "2024.08.24"]
[Round "3.6"]
[White "Stalmach, Richard"]
[Black "Slagboom, Leandro"]
[Result "1-0"]
[ECO "A61"]
[WhiteElo "2443"]
[BlackElo "2331"]
[Annotator "RC"]
[PlyCount "131"]
[EventDate "2024.08.19"]
[EventType "swiss"]
[EventCountry "CZE"]
[SourceTitle "playchess.com"]
[Source "ChessBase"]
[SourceQuality "1"]
[TimeControl "5400+30"]

1. d4 {[%emt 0:00:03]} Nf6 {[%emt 0:00:10]} 2. c4 {[%emt 0:00:17]} e6 {[%emt 0:00:06]} 3. Nc3 {[%emt 0:00:26]} c5 {[%emt 0:00:33]} 4. d5 {[%emt 0:00:11]} exd5 {[%emt 0:00:05]} 5. cxd5 {[%emt 0:00:04]} d6 {[%emt 0:00:05]} 6. Nf3 {[%emt 0:00:11]} g6 {[%emt 0:00:18]} 7. Nd2 {[%emt 0:00:06]} Bg7 {[%emt 0:00:35]} 8. e4 {[%emt 0:00:05]} O-O {[%emt 0:00:09]} 9. Be2 {[%emt 0:00:04]} Na6 {[%emt 0:00:23]} 10. O-O {[%emt 0:00:23]} Nc7 {[%emt 0:00:10]} 11. a4 {[%emt 0:06:04]} a6 {[%emt 0:01:41]} 12. a5 {[%emt 0:08:28]} Nb5 {[%emt 0:00:48]} 13. Bxb5 {[%emt 0:01:49]} axb5 {[%emt 0:00:06]} 14. Nxb5 {[%emt 0:00:04]} b6 {[%emt 0:00:30]} 15. Re1 {[%emt 0:02:02]} Ng4 {[%emt 0:01:16]} 16. Nf3 {[%emt 0:12:22]} bxa5 {[%emt 0:04:27]} 17. h3 {[%emt 0:17:32]} Ba6 {[%emt 0:00:44]} 18. hxg4 {[%emt 0:03:17]} Bxb5 {[%emt 0:00:07]} 19. g5 {[%emt 0:04:49]} Qb6 {[%emt 0:08:53]} 20. Ra3 {[%emt 0:01:36]} a4 {[%emt 0:10:42]} 21. e5 {[%emt 0:02:21]} dxe5 {[%emt 0:10:56]} 22. Nxe5 {[%emt 0:00:06]} Rad8 {[%emt 0:00:47]} 23. Qf3 {[%emt 0:20:35]} f6 {[%emt 0:16:59]} 24. gxf6 {[%emt 0:00:30]} Rxf6 {[%emt 0:11:34]} 25. Qh3 {[%emt 0:03:08]} Rf5 {[%emt 0:02:36]} 26. Ng4 {[%emt 0:04:35]} Rh5 {[%emt 0:04:14]} 27. Qg3 {[%emt 0:04:04]} Qd6 {[%emt 0:10:39]} 28. Bf4 {[%emt 0:01:07]} Qxd5 {[%emt 0:00:14]} 29. Rae3 {[%emt 0:01:01]} Bc6 {[%emt 0:03:29]} 30. Re7 {[%emt 0:01:15]} Rf8 {[%emt 0:02:32]} 31. Be5 {[%emt 0:03:15]} Bxe5 {[%emt 0:02:13]} 32. Nxe5 {[%emt 0:00:04]} Qd6 {[%emt 0:01:42]} 33. Nxc6 {[%emt 0:00:43]} Qxc6 {[%emt 0:00:04]} 34. R1e6 {[%emt 0:02:10]} Qd5 {[%emt 0:01:05]} 35. Rxg6+ {[%emt 0:00:14]} Kh8 {[%emt 0:00:05]} 36. Rd6 {[%emt 0:00:51]} Qg5 {[%emt 0:02:39]} 37. Qc3+ {[%emt 0:00:06]} Kg8 {[%emt 0:00:16]} 38. Qc4+ {[%emt 0:00:49]} Kh8 {[%emt 0:00:09]} 39. Qc3+ {[%emt 0:00:03]} Kg8 {[%emt 0:00:03]} 40. Rdd7 {[%emt 0:01:58]} Qf6 {[%emt 0:00:09]} 41. Qxf6 {[%emt 0:01:33]} Rxf6 {[%emt 0:00:01]} 42. Ra7 {[%emt 0:00:12]} Rd5 {[%emt 0:01:04]} 43. Rg7+ {[%emt 0:00:13]} Kf8 {[%emt 0:01:03]} 44. Rxh7 {[%emt 0:00:01]} Rd1+ {[%emt 0:00:47]} 45. Kh2 {[%emt 0:00:00]} Kg8 {[%emt 0:00:06]} 46. Rhg7+ {[%emt 0:00:08]} Kh8 {[%emt 0:00:50]} 47. Rh7+ {[%emt 0:00:04]} Kg8 {[%emt 0:00:03]} 48. Rag7+ {[%emt 0:02:26]} Kf8 {[%emt 0:00:03]} 49. Rc7 {[%emt 0:00:03]} Kg8 {[%emt 0:00:28]} 50. Rhg7+ {[%emt 0:00:11]} Kf8 {[%emt 0:00:13]} 51. f3 {[%emt 0:01:24]} Rd2 {[%emt 0:00:13]} 52. Rh7 {[%emt 0:00:06]} Kg8 {[%emt 0:00:06]} 53. Rcg7+ {[%emt 0:00:35]} Kf8 {[%emt 0:00:05]} 54. Rb7 {[%emt 0:00:20]} Kg8 {[%emt 0:00:08]} 55. Rhg7+ {[%emt 0:00:03]} Kh8 {[%emt 0:00:25]} 56. Rgc7 {[%emt 0:00:14]} Rg6 {[%emt 0:00:53]} 57. Rb8+ {[%emt 0:00:13]} Rg8 {[%emt 0:00:02]} 58. Rxg8+ {[%emt 0:00:05]} Kxg8 {[%emt 0:00:01]} 59. Rxc5 {[%emt 0:00:06]} Rxb2 {[%emt 0:00:04]} 60. Ra5 {[%emt 0:00:05]} Ra2 {[%emt 0:02:44]} 61. Ra7 {[%emt 0:00:07]} a3 {[%emt 0:00:16]} 62. Kh3 {[%emt 0:00:05]} Ra1 {[%emt 0:00:14]} 63. f4 {[%emt 0:00:07]} a2 {[%emt 0:00:16]} 64. Kg4 {[%emt 0:00:12]} Kf8 {[%emt 0:00:15]} 65. f5 {[%emt 0:00:15]} Kg8 {[%emt 0:00:11]} 66. Kg5 {[%emt 0:00:07]} 1-0

[Event "EYCC O18-ch 2024"]
[Site "Prague"]
[Date "2024.08.24"]
[Round "3.7"]
[White "Garcia Fernandez, Victor"]
[Black "Hrbek, Stepan"]
[Result "1-0"]
[ECO "D35"]
[WhiteElo "2313"]
[BlackElo "2414"]
[Annotator "RC"]
[PlyCount "91"]
[EventDate "2024.08.19"]
[EventType "swiss"]
[EventCountry "CZE"]
[SourceTitle "playchess.com"]
[Source "ChessBase"]
[SourceQuality "1"]
[TimeControl "5400+30"]

1. d4 {[%emt 0:00:03]} d5 {[%emt 0:00:24]} 2. c4 {[%emt 0:00:07]} e6 {[%emt 0:00:09]} 3. Nc3 {[%emt 0:00:09]} Nf6 {[%emt 0:00:16]} 4. cxd5 {[%emt 0:00:06]} exd5 {[%emt 0:00:17]} 5. Bg5 {[%emt 0:00:13]} Bb4 {[%emt 0:00:28]} 6. e3 {[%emt 0:01:05]} h6 {[%emt 0:00:28]} 7. Bh4 {[%emt 0:00:13]} g5 {[%emt 0:00:16]} 8. Bg3 {[%emt 0:00:05]} Ne4 {[%emt 0:00:15]} 9. a3 {[%emt 0:00:09]} Bxc3+ {[%emt 0:02:56]} 10. bxc3 {[%emt 0:00:15]} Nc6 {[%emt 0:00:31]} 11. Bd3 {[%emt 0:05:52]} Nxg3 {[%emt 0:24:45]} 12. hxg3 {[%emt 0:00:09]} Qd6 {[%emt 0:00:21]} 13. Ne2 {[%emt 0:24:44]} Be6 {[%emt 0:02:58]} 14. Qc2 {[%emt 0:00:28]} O-O-O {[%emt 0:03:29]} 15. c4 {[%emt 0:00:32]} dxc4 {[%emt 0:00:56]} 16. Bxc4 {[%emt 0:00:03]} h5 {[%emt 0:04:08]} 17. Bxe6+ {[%emt 0:09:19]} Qxe6 {[%emt 0:07:54]} 18. Rb1 {[%emt 0:00:11]} b6 {[%emt 0:13:40]} 19. Rb5 {[%emt 0:07:52]} Rd5 {[%emt 0:14:13]} 20. Rxd5 {[%emt 0:01:20]} Qxd5 {[%emt 0:00:01]} 21. O-O {[%emt 0:00:23]} h4 {[%emt 0:01:20]} 22. gxh4 {[%emt 0:00:25]} Rxh4 {[%emt 0:01:18]} 23. Ng3 {[%emt 0:00:33]} Kb7 {[%emt 0:01:26]} 24. Rc1 {[%emt 0:00:38]} Qd7 {[%emt 0:04:14]} 25. Nf5 {[%emt 0:01:31]} Rh8 {[%emt 0:00:23]} 26. Qe4 {[%emt 0:00:55]} Re8 {[%emt 0:01:39]} 27. Qf3 {[%emt 0:00:23]} g4 {[%emt 0:00:16]} 28. Qxg4 {[%emt 0:01:16]} Ne7 {[%emt 0:00:13]} 29. Qf3+ {[%emt 0:01:23]} c6 {[%emt 0:00:27]} 30. Nh6 {[%emt 0:02:28]} f5 {[%emt 0:03:23]} 31. Nf7 {[%emt 0:00:42]} Qe6 {[%emt 0:02:29]} 32. Ne5 {[%emt 0:01:29]} Rc8 {[%emt 0:00:12]} 33. a4 {[%emt 0:10:42]} Qd5 {[%emt 0:01:56]} 34. Qxd5 {[%emt 0:07:55]} cxd5 {[%emt 0:00:09]} 35. Rxc8 {[%emt 0:00:42]} Nxc8 {[%emt 0:00:07]} 36. Kf1 {[%emt 0:00:05]} Ka6 {[%emt 0:01:18]} 37. Nc6 {[%emt 0:00:12]} Kb7 {[%emt 0:05:51]} 38. Nb4 {[%emt 0:00:12]} Ne7 {[%emt 0:00:01]} 39. Ke2 {[%emt 0:00:28]} a5 {[%emt 0:02:32]} 40. Na2 {[%emt 0:00:36]} Kc6 {[%emt 0:00:04]} 41. Nc3 {[%emt 0:00:05]} Kd6 {[%emt 0:00:06]} 42. f3 {[%emt 0:00:55]} Ke6 {[%emt 0:00:07]} 43. g4 {[%emt 0:00:37]} fxg4 {[%emt 0:00:05]} 44. fxg4 {[%emt 0:00:01]} Nc6 {[%emt 0:01:28]} 45. Kf3 {[%emt 0:04:12]} Nb4 {[%emt 0:00:01]} 46. e4 {[%emt 0:00:20]} 1-0

[Event "EYCC O18-ch 2024"]
[Site "Prague"]
[Date "2024.08.24"]
[Round "3.7"]
[White "Ribera Veganzones, Serni"]
[Black "Salgovic, Simon"]
[Result "1-0"]
[ECO "C42"]
[WhiteElo "2309"]
[BlackElo "2144"]
[Annotator "RC"]
[PlyCount "107"]
[EventDate "2024.08.19"]
[EventType "swiss"]
[EventCountry "CZE"]
[SourceTitle "playchess.com"]
[Source "ChessBase"]
[SourceQuality "1"]
[TimeControl "5400+30"]

1. e4 e5 2. Nf3 Nf6 3. Nxe5 d6 4. Nf3 Nxe4 5. d4 d5 6. Bd3 Nc6 7. O-O Be7 8. Re1 Bf5 9. Nbd2 Nxd2 10. Qxd2 Bxd3 11. Qxd3 O-O 12. Bf4 Bd6 13. Ng5 g6 14. Qh3 h5 15. Be3 Qf6 16. Nf3 Bf4 17. c3 Rfe8 18. Nd2 Qg5 19. Bxf4 Qxf4 20. Qd3 Rxe1+ 21. Rxe1 Kf8 22. Nf1 a6 23. Qc2 Qd6 24. Qd2 Kg7 25. Qg5 Nd8 26. Ne3 Ne6 27. Qxd5 Qxd5 28. Nxd5 Rd8 29. Ne3 Kf6 30. g3 b5 31. Rd1 Ke7 32. Kf1 c5 33. dxc5 Rxd1+ 34. Nxd1 Nxc5 35. Ke2 Ke6 36. b4 Ne4 37. Kd3 f5 38. c4 bxc4+ 39. Kxc4 f4 40. a4 Kf5 41. Kd4 g5 42. b5 axb5 43. axb5 Nd6 44. b6 Kg4 45. Kd5 Nb7 46. Kc6 Na5+ 47. Kb5 Nb7 48. Kc6 Na5+ 49. Kc7 fxg3 50. fxg3 Kh3 51. Nb2 Kxh2 52. Nc4 Nb3 53. Kd6 Nd4 54. b7 1-0